fUST/lending_fUST_20240519
["ID","MTS","AMOUNT","RATE_DAILY","PERIOD"]
[327505555,1716129045910,-500.0,0.00043835,30]
[327505556,1716129045919,-500.0,0.00043835,30]
[327505557,1716129045928,-500.0,0.00043835,30]
[327505558,1716129045937,-500.0,0.00043835,30]
[327505559,1716129045947,-500.0,0.00043835,30]
[327505560,1716129045956,-500.0,0.00043835,30]
[327505561,1716129045965,-500.0,0.00043835,30]
[327505562,1716129045975,-500.0,0.00043835,31]
[327505563,1716129045984,-500.0,0.00043835,30]
[327505564,1716129045994,-539.83,0.00043835,30]
[327505565,1716129046003,-500.0,0.00043835,30]
[327505566,1716129046012,-500.0,0.00043835,30]
[327505567,1716129046022,-500.0,0.00043835,30]
[327505568,1716129046031,-500.0,0.00043835,30]
[327505570,1716129046040,-447.11207066,0.00043835,30]
[327505571,1716129046049,-500.0,0.00043835,30]
[327505572,1716129046058,-500.0,0.00043835,30]
[327505573,1716129046068,-405.35496611,0.00043835,30]
[327505574,1716129046077,-500.0,0.00043835,30]
[327505575,1716129046086,-500.0,0.00043835,30]
[327505576,1716129046095,-500.0,0.00043835,30]
[327505577,1716129046105,-500.0,0.00043835,30]
[327505578,1716129046115,-500.0,0.00043835,30]
[327505579,1716129046124,-617.48,0.00043835,30]
[327505580,1716129046132,-500.0,0.00043835,30]
[327505581,1716129046142,-500.0,0.00043835,30]
[327505582,1716129046152,-500.0,0.00043835,30]
[327505583,1716129046160,-500.66513463,0.00043835,30]
[327505584,1716129046170,-500.0,0.00043835,30]
[327505585,1716129046180,-383.3722933,0.00043835,2]
[327505586,1716129046189,-500.0,0.00043835,30]
[327505588,1716129046198,-505.58600913,0.00043835,30]
[327505590,1716129046207,-620.39527511,0.00043835,30]
[327505592,1716129046216,-531.60153586,0.00043835,30]
[327505594,1716129046225,-500.0,0.00043835,30]
[327505595,1716129046235,-771.88,0.00043835,30]
[327505596,1716129046244,-500.0,0.00043835,30]
[327505597,1716129046254,-500.0,0.00043835,30]
[327505598,1716129046263,-198.6821785,0.00043835,30]
[327505599,1716129046272,-500.0,0.00043835,30]
[327505600,1716129046281,-500.0,0.00043835,7]
[327505601,1716129046291,-500.0,0.00043835,30]
[327505602,1716129046299,-500.0,0.00043835,30]
[327505603,1716129046309,-502.87048073,0.00043835,30]
[327505604,1716129046318,-501.01633657,0.00043835,30]
[327505605,1716129046327,-501.08247028,0.00043835,30]
[327505606,1716129046336,-500.0,0.00043835,30]
[327505607,1716129046346,-501.24466462,0.00043835,30]
[327505608,1716129046355,-512.97388621,0.00043835,30]
[327505609,1716129046364,-500.53679823,0.00043835,30]
[327505610,1716129046374,-1003.12919054,0.00043835,30]
[327505611,1716129046388,-588.78940909,0.00043835,30]
[327505612,1716129046398,-501.28635726,0.00043835,30]
[327505614,1716129046407,-501.92328852,0.00043835,30]
[327505616,1716129046417,-500.0,0.00043835,30]
[327505618,1716129046427,-500.0,0.00043835,30]
[327505620,1716129046436,-500.0,0.00043835,30]
[327505622,1716129046445,-500.0,0.00043835,31]
[327505624,1716129046456,-578.51657516,0.00043835,32]
[327505625,1716129046465,-501.07831153,0.00043835,30]
[327505626,1716129046475,-500.0,0.00043835,30]
[327505627,1716129046484,-500.49480332,0.00043835,30]
[327505628,1716129046493,-500.0,0.00043835,30]
[327505629,1716129046502,-500.0,0.00043835,30]
[327505630,1716129046511,-500.0,0.00043835,30]
[327505631,1716129046520,-500.0,0.00043835,30]
[327505632,1716129046531,-505.44481985,0.00043835,30]
[327505633,1716129046540,-507.4205113,0.00043835,30]
[327505634,1716129046548,-500.0,0.00043835,30]
[327505635,1716129046557,-500.0,0.00043835,30]
[327505636,1716129046567,-500.0,0.00043835,30]
[327505637,1716129046576,-500.0,0.00043835,30]
[327505638,1716129046586,-500.0,0.00043835,30]
[327505639,1716129046595,-508.02330734,0.00043835,20]
[327505641,1716129046605,-503.52418448,0.00043835,30]
[327505643,1716129046614,-500.0,0.00043835,30]
[327505644,1716129046622,-500.0,0.00043835,30]
[327505645,1716129046632,-500.0,0.00043835,30]
[327505646,1716129046642,-500.0,0.00043835,30]
[327505647,1716129046652,-500.0,0.00043835,30]
[327505648,1716129046661,-500.0,0.00043835,30]
[327505649,1716129046674,-500.0,0.00043835,30]
[327505650,1716129046683,-500.0,0.00043835,30]
[327505651,1716129046692,-500.0,0.00043835,30]
[327505652,1716129046702,-500.0,0.00043835,30]
[327505653,1716129046711,-500.0,0.00043835,30]
[327505654,1716129046720,-500.0,0.00043835,30]
[327505655,1716129046730,-501.37226048,0.00043835,30]
[327505656,1716129046739,-500.0,0.00043835,30]
[327505657,1716129046748,-500.0,0.00043835,30]
[327505658,1716129046758,-500.0,0.00043835,30]
[327505659,1716129046767,-500.0,0.00043835,30]
[327505660,1716129046777,-500.0,0.00043835,30]
[327505661,1716129046786,-500.0,0.00043835,30]
[327505662,1716129046795,-500.0,0.00043835,30]
[327505663,1716129046805,-500.0,0.00043835,30]
[327505664,1716129046814,-500.0,0.00043835,30]
[327505665,1716129046824,-500.0,0.00043835,30]
[327505666,1716129046833,-502.81527787,0.00043835,30]
[327505667,1716129046842,-500.0,0.00043835,30]
[327505668,1716129046851,-500.0,0.00043835,30]
[327505669,1716129046860,-502.42279645,0.00043835,30]
[327505670,1716129046870,-153.56916653,0.00043835,30]
[327505671,1716129046880,-294.30194895,0.00043835,30]
[327505672,1716129046890,-500.0,0.00043835,30]
[327505673,1716129046900,-500.0,0.00043835,30]
[327505674,1716129046910,-500.0,0.00043835,30]
[327505675,1716129046920,-500.0,0.00043835,30]
[327505676,1716129046930,-500.0,0.00043835,30]
[327505677,1716129046940,-500.0,0.00043835,2]
[327505678,1716129046951,-500.0,0.00043835,30]
[327505679,1716129046961,-500.0,0.00043835,30]
[327505680,1716129046971,-500.0,0.00043835,30]
[327505681,1716129046981,-521.87955217,0.00043835,30]
[327505682,1716129046991,-500.0,0.00043835,30]
[327505683,1716129047001,-505.32168027,0.00043835,30]
[327505684,1716129047011,-500.0,0.00043835,30]
[327505685,1716129047022,-500.0,0.00043835,30]
[327505686,1716129047032,-500.0,0.00043835,30]
[327505687,1716129047042,-500.0,0.00043835,30]
[327505688,1716129047051,-500.0,0.00043835,30]
[327505689,1716129047061,-500.0,0.00043835,30]
[327505690,1716129047071,-500.0,0.00043835,30]
[327505691,1716129047080,-500.0,0.00043835,30]
[327505692,1716129047090,-500.0,0.00043835,30]
[327505693,1716129047099,-500.0,0.00043835,30]
[327505694,1716129047108,-500.0,0.00043835,30]
[327505695,1716129047118,-505.83413611,0.00043835,30]
[327505696,1716129047127,-500.0,0.00043835,30]
[327505697,1716129047136,-500.0,0.00043835,30]
[327505698,1716129047147,-500.0,0.00043835,30]
[327505699,1716129047155,-500.0,0.00043835,4]
[327505700,1716129047164,-500.0,0.00043835,30]
[327505701,1716129047174,-500.0,0.00043835,30]
[327505702,1716129047183,-500.0,0.00043835,30]
[327505703,1716129047192,-500.0,0.00043835,30]
[327505704,1716129047201,-500.0,0.00043835,30]
[327505705,1716129047211,-500.0,0.00043835,30]
[327505706,1716129047220,-582.49458125,0.00043835,30]
[327505707,1716129047230,-500.0,0.00043835,30]
[327505708,1716129047239,-500.0,0.00043835,30]
[327505709,1716129047249,-500.0,0.00043835,30]
[327505710,1716129047258,-500.0,0.00043835,30]
[327505711,1716129047267,-500.0,0.00043835,30]
[327505712,1716129047276,-500.0,0.00043835,30]
[327505713,1716129047285,-500.0,0.00043835,30]
[327505714,1716129047294,-564.0380476,0.00043835,30]
[327505715,1716129047304,-500.0,0.00043835,30]
[327505716,1716129047313,-500.0,0.00043835,30]
[327505717,1716129047322,-500.0,0.00043835,30]
[327505718,1716129047331,-501.61020986,0.00043835,30]
[327505719,1716129047341,-500.0,0.00043835,30]
[327505720,1716129047350,-500.0,0.00043835,30]
[327505721,1716129047359,-500.0,0.00043835,30]
[327505722,1716129047369,-500.0,0.00043835,30]
[327505723,1716129047382,-494.91307564,0.00043835,30]
[327505724,1716129047391,-500.60028182,0.00043835,30]
[327505725,1716129047401,-500.0,0.00043835,30]
[327505726,1716129047410,-648.43,0.00043835,30]
[327505727,1716129047421,-500.91356822,0.00043835,30]
[327505728,1716129047430,-502.61272761,0.00043835,30]
[327505729,1716129047439,-500.0,0.00043835,30]
[327505730,1716129047448,-500.0,0.00043835,30]
[327505731,1716129047459,-500.0,0.00043835,30]
[327505732,1716129047469,-500.0,0.00043835,30]
[327505733,1716129047478,-500.0,0.00043835,30]
[327505734,1716129047487,-500.0,0.00043835,30]
[327505735,1716129047496,-500.0,0.00043835,30]
[327505736,1716129047505,-444.62487383,0.00043835,30]
[327505737,1716129047515,-500.0,0.00043835,30]
[327505738,1716129047524,-506.68978906,0.00043835,30]
[327505739,1716129047533,-500.0,0.00043835,30]
[327505740,1716129047543,-500.0,0.00043835,30]
[327505741,1716129047551,-500.0,0.00043835,30]
[327505742,1716129047561,-500.0,0.00043835,7]
[327505743,1716129047570,-500.0,0.00043835,30]
[327505744,1716129047579,-507.05363565,0.00043835,30]
[327505745,1716129047589,-500.0,0.00043835,30]
[327505746,1716129047598,-531.65339822,0.00043835,30]
[327505747,1716129047608,-458.97952228,0.00043835,30]
[327505748,1716129047619,-501.30650493,0.00043835,30]
[327505749,1716129047629,-511.37,0.00043835,30]
[327505750,1716129047638,-500.0,0.00043835,30]
[327505751,1716129047648,-446.38750793,0.00043835,30]
[327505752,1716129047657,-500.0,0.00043835,30]
[327505753,1716129047666,-290.72751868,0.00043835,30]
[327505754,1716129047676,-500.0,0.00043835,30]
[327505755,1716129047686,-522.6904104,0.00043835,30]
[327505756,1716129047696,-500.0,0.00043835,30]
[327505757,1716129047705,-500.0,0.00043835,30]
[327505758,1716129047715,-500.0,0.00043835,30]
[327505759,1716129047723,-500.0,0.00043835,30]
[327505760,1716129047733,-500.0,0.00043835,30]
[327505761,1716129047742,-500.0,0.00043835,21]
[327505762,1716129047751,-500.0,0.00043835,30]
[327505763,1716129047761,-512.2218514,0.00043835,30]
[327505764,1716129047771,-153.66311381,0.00043835,30]
[327505765,1716129047781,-2468.64,0.00043835,30]
[327505766,1716129047790,-1000.0,0.00043835,30]
[327505767,1716129047799,-507.72289084,0.00043835,30]
[327505768,1716129047808,-500.0,0.00043835,30]
[327505769,1716129047817,-601.63243183,0.00043835,30]
[327505770,1716129047826,-500.0,0.00043835,30]
[327505771,1716129047835,-500.0,0.00043835,30]
[327505772,1716129047844,-353.997071,0.00043835,7]
[327505773,1716129047854,-353.997071,0.00043835,7]
[327505774,1716129047863,-523.3386616,0.00043835,30]
[327505775,1716129047872,-502.27706116,0.00043835,30]
[327505776,1716129047881,-500.0,0.00043835,30]
[327505777,1716129047891,-600.0,0.00043835,30]
[327505778,1716129047901,-500.0,0.00043835,30]
[327505779,1716129047911,-353.997071,0.00043835,7]
[327505780,1716129047921,-353.997071,0.00043835,7]
[327505781,1716129047930,-500.0,0.00043835,30]
[327505782,1716129047940,-500.0,0.00043835,30]
[327505783,1716129047949,-500.0,0.00043835,30]
[327505784,1716129047959,-501.69221528,0.00043835,30]
[327505785,1716129047968,-500.0,0.00043835,30]
[327505786,1716129047979,-500.0,0.00043835,30]
[327505787,1716129047989,-500.0,0.00043835,30]
[327505788,1716129047998,-500.0,0.00043835,31]
[327505789,1716129048008,-500.0,0.00043835,32]
[327505790,1716129048018,-500.0,0.00043835,33]
[327505791,1716129048028,-501.37931915,0.00043835,30]
[327505792,1716129048038,-501.40822315,0.00043835,30]
[327505793,1716129048047,-500.0,0.00043835,30]
[327505794,1716129048056,-501.54232854,0.00043835,30]
[327505795,1716129048065,-644.21,0.00043835,30]
[327505796,1716129048075,-315.08786585,0.00043835,30]
[327505797,1716129048084,-500.0,0.00043835,30]
[327505798,1716129048093,-501.44891104,0.00043835,30]
[327505799,1716129048102,-467.3279651,0.00043835,30]
[327505800,1716129048112,-500.0,0.00043835,30]
[327505801,1716129048121,-501.77623525,0.00043835,2]
[327505802,1716129048130,-500.0,0.00043835,30]
[327505803,1716129048139,-384.28,0.00043835,30]
[327505804,1716129048148,-182.65961265,0.00043835,30]
[327505805,1716129048158,-500.0,0.00043835,30]
[327505806,1716129048167,-501.04937002,0.00043835,30]
[327505807,1716129048176,-500.0,0.00043835,30]
[327505808,1716129048186,-500.0,0.00043835,30]
[327505809,1716129048195,-5110.43,0.00043835,30]
[327505810,1716129048204,-447.64848103,0.00043835,30]
[327505811,1716129048213,-500.0,0.00043835,30]
[327505812,1716129048222,-602.50952129,0.00043835,30]
[327505813,1716129048231,-500.0,0.00043835,30]
[327505814,1716129048242,-500.0,0.00043835,30]
[327505815,1716129048251,-500.0,0.00043835,30]
[327505816,1716129048260,-500.0,0.00043835,30]
[327505817,1716129048355,-500.0,0.00043835,30]
[327505818,1716129048364,-501.94,0.00043835,30]
[327505819,1716129048375,-500.0,0.00043835,30]
[327505820,1716129048389,-500.0,0.00043835,30]
[327505821,1716129048399,-500.0,0.00043835,30]
[327505822,1716129048408,-500.0,0.00043835,30]
[327505823,1716129048419,-500.0,0.00043835,30]
[327505824,1716129048428,-500.0,0.00043835,30]
[327505825,1716129048438,-500.0,0.00043835,30]
[327505826,1716129048447,-500.0,0.00043835,30]
[327505827,1716129048456,-500.0,0.00043835,30]
[327505828,1716129048466,-500.0,0.00043835,30]
[327505829,1716129048476,-2289.41,0.00043835,30]
[327505830,1716129048485,-500.0,0.00043835,30]
[327505831,1716129048495,-500.0,0.00043835,30]
[327505832,1716129048504,-729.1,0.00043835,30]
[327505833,1716129048513,-504.3044608,0.00043835,30]
[327505834,1716129048523,-500.0,0.00043835,30]
[327505835,1716129048532,-500.0,0.00043835,30]
[327505836,1716129048541,-234.99,0.00043835,30]
[327505837,1716129048550,-398.63,0.00043835,30]
[327505838,1716129048559,-500.0,0.00043835,30]
[327505839,1716129048569,-500.0,0.00043835,30]
[327505840,1716129048578,-500.0,0.00043835,30]
[327505841,1716129048588,-500.0,0.00043835,30]
[327505842,1716129048597,-500.0,0.00043835,31]
[327505843,1716129048607,-500.0,0.00043835,32]
[327505844,1716129048618,-500.0,0.00043835,33]
[327505845,1716129048629,-500.0,0.00043835,34]
[327505846,1716129048639,-500.0,0.00043835,30]
[327505847,1716129048649,-500.0,0.00043835,35]
[327505848,1716129048659,-500.0,0.00043835,36]
[327505849,1716129048668,-500.0,0.00043835,37]
[327505850,1716129048678,-500.0,0.00043835,30]
[327505851,1716129048687,-157.55879278,0.00043835,38]
[327505852,1716129048697,-500.0,0.00043835,30]
[327505853,1716129048707,-500.0,0.00043835,30]
[327505854,1716129048716,-500.0,0.00043835,30]
[327505855,1716129048726,-500.0,0.00043835,30]
[327505856,1716129048735,-504.05135714,0.00043835,30]
[327505857,1716129048744,-544.46,0.00043835,30]
[327505858,1716129048753,-500.0,0.00043835,30]
[327505859,1716129048763,-500.71646111,0.00043835,30]
[327505860,1716129048772,-500.11912341,0.00043835,2]
[327505861,1716129048782,-500.0,0.00043835,30]
[327505862,1716129048792,-504.0,0.00043835,2]
[327505863,1716129048801,-514.54286818,0.00043835,30]
[327505864,1716129048810,-500.0,0.00043835,2]
[327505865,1716129048820,-1466.67827902,0.00044,15]
[327505866,1716129048829,-500.0,0.00044109,31]
[327505867,1716129048838,-500.0,0.00044109,31]
[327505868,1716129048847,-500.0,0.00044109,31]
[327505869,1716129048856,-500.0,0.00044109,31]
[327505870,1716129048865,-500.0,0.00044109,31]
[327505871,1716129048874,-500.0,0.00044109,31]
[327505872,1716129048883,-500.0,0.00044109,31]
[327505873,1716129048892,-505.40075909,0.00044109,31]
[327505874,1716129048903,-500.0,0.00044109,31]
[327505875,1716129048912,-500.0,0.00044109,31]
[327505876,1716129048921,-300.0,0.00044109,7]
[327505877,1716129048931,-500.0,0.00044109,20]
[327505878,1716129048941,-613.55,0.00044109,31]
[327505879,1716129048951,-500.0,0.00044109,31]
[327505880,1716129048960,-500.0,0.00044109,31]
[327505881,1716129048969,-500.0,0.00044109,31]
[327505882,1716129048979,-500.0,0.00044109,31]
[327505883,1716129048988,-500.0,0.00044109,31]
[327505884,1716129048997,-503.54717848,0.00044109,31]
[327505885,1716129049006,-500.0,0.00044109,31]
[327505886,1716129049015,-528.37195546,0.00044109,31]
[327505887,1716129049025,-500.0,0.00044109,31]
[327505888,1716129049035,-500.0,0.00044109,31]
[327505889,1716129049044,-166.88157879,0.00044109,31]
[327505890,1716129049054,-535.59,0.00044109,31]
[327505892,1716129049064,-500.0,0.00044109,31]
[327505893,1716129049073,-500.0,0.00044109,31]
[327505894,1716129049083,-771.88,0.00044109,31]
[327505895,1716129049093,-500.0,0.00044109,31]
[327505896,1716129049103,-500.0,0.00044109,31]
[327505897,1716129049112,-500.0,0.00044109,31]
[327505898,1716129049121,-500.0,0.00044109,31]
[327505899,1716129049130,-500.0,0.00044109,31]
[327505900,1716129049139,-500.0,0.00044109,31]
[327505901,1716129049151,-500.0,0.00044109,31]
[327505902,1716129049160,-500.0,0.00044109,31]
[327505903,1716129049169,-500.0,0.00044109,31]
[327505904,1716129049178,-500.0,0.00044109,31]
[327505905,1716129049187,-500.0,0.00044109,31]
[327505906,1716129049197,-500.0,0.00044109,31]
[327505907,1716129049206,-500.0,0.00044109,31]
[327505908,1716129049215,-500.0,0.00044109,31]
[327505909,1716129049225,-515.91624839,0.00044109,31]
[327505910,1716129049234,-508.61214879,0.00044109,31]
[327505911,1716129049243,-500.0,0.00044109,31]
[327505912,1716129049253,-500.0,0.00044109,31]
[327505913,1716129049262,-244.84223812,0.00044109,31]
[327505914,1716129049271,-300.76803827,0.00044109,31]
[327505915,1716129049280,-500.0,0.00044109,31]
[327505916,1716129049289,-262.86476408,0.00044109,31]
[327505917,1716129049299,-500.0,0.00044109,31]
[327505918,1716129049309,-500.0,0.00044109,31]
[327505919,1716129049318,-500.0,0.00044109,31]
[327505920,1716129049328,-589.51951981,0.00044109,31]
[327505921,1716129049338,-500.0,0.00044109,31]
[327505922,1716129049347,-500.0,0.00044109,31]
[327505923,1716129049356,-502.46128,0.00044109,31]
[327505924,1716129049365,-281.06024643,0.00044109,31]
[327505925,1716129049376,-500.0,0.00044109,4]
[327505926,1716129049386,-191.69,0.00044109,31]
[327505927,1716129049397,-503.73341717,0.00044109,31]
[327505928,1716129049406,-500.0,0.00044109,31]
[327505929,1716129049415,-517.51895504,0.00044109,31]
[327505930,1716129049426,-500.0,0.00044109,31]
[327505931,1716129049435,-500.0,0.00044109,31]
[327505932,1716129049444,-545.75969571,0.00044109,31]
[327505933,1716129049456,-500.0,0.00044109,31]
[327505934,1716129049465,-500.0,0.00044109,31]
[327505935,1716129049474,-500.0,0.00044109,31]
[327505936,1716129049483,-500.0,0.00044109,31]
[327505937,1716129049492,-500.0,0.00044109,31]
[327505938,1716129049501,-500.0,0.00044109,31]
[327505939,1716129049510,-632.1,0.00044109,31]
[327505940,1716129049519,-500.0,0.00044109,31]
[327505941,1716129049528,-500.0,0.00044109,31]
[327505942,1716129049537,-609.51,0.00044109,31]
[327505943,1716129049547,-362.43,0.00044109,7]
[327505944,1716129049556,-500.0,0.00044109,31]
[327505945,1716129049566,-511.37,0.00044109,31]
[327505946,1716129049575,-509.08374634,0.00044109,31]
[327505947,1716129049585,-500.0,0.00044109,31]
[327505948,1716129049594,-500.0,0.00044109,21]
[327505949,1716129049604,-2468.64,0.00044109,31]
[327505950,1716129049614,-390.69610283,0.00044109,31]
[327505951,1716129049635,-112.49389704,0.00044109,31]
[327505952,1716129049644,-353.997071,0.00044109,7]
[327505953,1716129049655,-353.997071,0.00044109,7]
[327505954,1716129049664,-500.0,0.00044109,31]
[327505955,1716129049674,-500.0,0.00044109,31]
[327505956,1716129049683,-353.997071,0.00044109,7]
[327505957,1716129049692,-353.997071,0.00044109,7]
[327505958,1716129049703,-500.0,0.00044109,31]
[327505959,1716129049714,-569.27,0.00044109,31]
[327505960,1716129049723,-511.24203665,0.00044109,31]
[327505961,1716129049733,-543.80982664,0.00044109,31]
[327505962,1716129049743,-500.0,0.00044109,31]
[327505963,1716129049753,-500.0,0.00044109,31]
[327505964,1716129049762,-335.15,0.00044109,31]
[327505965,1716129049771,-572.91,0.00044109,31]
[327505966,1716129049780,-5110.43,0.00044109,31]
[327505967,1716129049790,-500.0,0.00044109,31]
[327505968,1716129049799,-500.0,0.00044109,31]
[327505969,1716129049810,-500.0,0.00044109,31]
[327505970,1716129049819,-48.49241942,0.00044109,31]
[327506018,1716130231169,1011.64,0.00034576,30]
[327506064,1716130241377,-6901.89866096,0.000125,2]
[327506066,1716130241387,-164.23687374,0.000139,2]
[327506067,1716130241397,-921.05245398,0.00014,2]
[327506068,1716130241407,-1270.0,0.00016,2]
[327506069,1716130241416,-164.2368737,0.00016521,2]
[327506070,1716130241426,-164.2368737,0.00019141,2]
[327506071,1716130241437,-157.342908,0.00019178,2]
[327506072,1716130241448,-150.0,0.00019384,3]
[327506073,1716130241458,-1565.36747024,0.0002,2]
[327506074,1716130241469,-241.21190449,0.0002,2]
[327506075,1716130241478,-200.0,0.0002,2]
[327506076,1716130241488,-335.48531154,0.00020912,2]
[327506077,1716130241498,-306.80999999,0.00020912,2]
[327506078,1716130241509,-7858.02562025,0.00020912,2]
[327506079,1716130241518,-164.2368737,0.00021762,2]
[327506080,1716130241528,-166.666666,0.00021918,2]
[327506081,1716130241539,-295.85842958,0.00022,14]
[327506082,1716130241549,-159.68754847,0.00022,2]
[327506083,1716130241558,-600.92746942,0.000223,2]
[327506084,1716130241568,-166.666666,0.00022431,2]
[327506085,1716130241578,-500.0,0.00022549,2]
[327506086,1716130241587,-167.08105876,0.00022549,2]
[327506087,1716130241597,-15757.55252627,0.0002255,2]
[327506088,1716130241607,-166.666666,0.00022944,2]
[327506089,1716130241617,-154.84515485,0.00023,2]
[327506090,1716130241627,-4691.82133028,0.00023,2]
[327506091,1716130241636,-166.666666,0.00023456,2]
[327506092,1716130241645,-166.666666,0.00023969,2]
[327506093,1716130241656,-187.1445694,0.00024,2]
[327506094,1716130241665,-164.2368737,0.00024382,2]
[327506095,1716130241674,-455.014147,0.00024384,2]
[327506096,1716130241683,-513.0,0.00024384,2]
[327506097,1716130241692,-15187.73376399,0.000244,2]
[327506098,1716130241702,-166.666666,0.00024482,2]
[327506099,1716130241711,-167.40589565,0.00025,2]
[327506100,1716130241721,-400.66759561,0.00025,2]
[327506101,1716130241730,-1019.36053782,0.00025,2]
[327506102,1716130241739,-1019.15478625,0.00026,2]
[327506103,1716130241748,-157.342908,0.00026388,2]
[327506104,1716130241757,-218.34374055,0.000275,17]
[327506105,1716130241769,-221.53735836,0.00028,2]
[327506106,1716130241779,-167.683106,0.00028986,2]
[327506107,1716130241788,-154.84515485,0.0003,4]
[327506108,1716130241797,-247.0,0.0003,2]
[327506109,1716130241807,-455.014147,0.0003031,2]
[327506110,1716130241816,-513.0,0.0003031,2]
[327506111,1716130241825,-640.68973383,0.00032,4]
[327506112,1716130241835,-819.9745554,0.00033,4]
[327506113,1716130241847,-410.25036122,0.00033082,4]
[327506114,1716130241856,-157.342908,0.00033598,2]
[327506115,1716130241865,-467.90063964,0.00034,4]
[327506116,1716130241875,-154.84515485,0.00034,2]
[327506117,1716130241885,-580.3445068,0.00034456,2]
[327506118,1716130241894,-380.03170039,0.00034555,7]
[327506119,1716130241903,-1000.0,0.00034556,120]
[327506120,1716130241912,-1000.0,0.00034556,120]
[327506121,1716130241922,-516.0,0.00034556,120]
[327506122,1716130241930,-10734.93508777,0.00034556,30]
[327506123,1716130241944,-297.91664767,0.00034556,30]
[327506124,1716130241957,-4658.99170735,0.00034556,30]
[327506125,1716130241968,-13671.65813021,0.00034556,30]
[327506126,1716130241977,-781.49489198,0.00034556,30]
[327506127,1716130241986,-5543.45918095,0.00034556,30]
[327506128,1716130241996,-4999.96119958,0.00034556,30]
[327506129,1716130242006,-8212.74790356,0.0003457,2]
[327506130,1716130242018,-294.86,0.0003457,2]
[327506131,1716130242029,-872.67904065,0.0003457,2]
[327506132,1716130242042,-619.71305479,0.0003457,2]
[327506133,1716130242052,-713.95701685,0.00034576,4]
[327506221,1716131053406,-921.05245398,0.00014,2]
[327506222,1716131053429,-1270.0,0.00016,2]
[327506226,1716131166277,285.74827739,0.00016,2]
[327506227,1716131182291,285.74827739,0.00016,2]
[327506228,1716131184172,162.0,0.000299,32]
[327506229,1716131197498,154.82968734,9.999e-05,2]
[327506230,1716131202305,285.74827739,0.00016,2]
[327506231,1716131207016,334.0,0.00029531,30]
[327506250,1716131432131,-1270.0,0.00018456,2]
[327506253,1716131432141,-995.42757579,0.00018457,2]
[327506255,1716131432150,-241.250007,0.00018753,2]
[327506258,1716131432160,-150.0,0.00019409,3]
[327506260,1716131432169,-73.54431705,0.00019428,2]
[327506262,1716131432181,-999.63689439,0.00019428,2]
[327506264,1716131432196,-1523.81588351,0.00019428,2]
[327506266,1716131432205,-291.26672399,0.00019429,2]
[327506268,1716131432214,-4601.65981006,0.0001943,2]
[327506286,1716131439272,-318.47,0.0001943,2]
[327506318,1716131443487,-2421.74818551,0.000189,2]
[327506319,1716131443498,-19979.87018994,0.0001943,2]
[327506320,1716131443507,-367.78059595,0.00019764,2]
[327506321,1716131443517,-207.02451915,0.00019864,2]
[327506322,1716131443527,-241.21190449,0.0002,2]
[327506323,1716131443537,-1565.36747024,0.0002,2]
[327506324,1716131443547,-525.57390868,0.00020908,2]
[327506325,1716131443557,-189.86799103,0.0002091,2]
[327506326,1716131443567,-3060.90965728,0.0002091,2]
[327506327,1716131443577,-895.80593484,0.0002091,2]